bitfinex/quotes_ETHUSD_20250810
["timestamp","ask_amount","ask_price","bid_price","bid_amount"]
[1754845893900,2.90637871,4243.8,4243.7,0.001]
[1754845894104,3.657,4243.8,4243.7,0.22015798]
[1754845894412,5.35594686,4244.6,4243.8,2.35637871]
[1754845894600,0.9107,4245.4,4244.5,0.1176]
[1754845894813,3.20599525,4245.8,4244.7,2.35583514]
[1754845894814,2.35548772,4245.5,4244.7,2.35583514]
[1754845894998,0.4437,4246.0,4245.3,0.1176]
[1754845894999,3.661,4245.4,4245.3,0.1176]
[1754845895326,3.661,4245.4,4245.3,3.49169375]
[1754845895530,0.002,4246.8,4245.3,3.49169375]
[1754845895531,2.35482449,4246.7,4245.8,2.35526288]
[1754845895839,0.002,4246.8,4246.5,2.35487296]
[1754845895991,3.667,4246.8,4246.7,0.1176]
[1754845896324,0.002,4246.8,4246.7,3.39946958]
[1754845896485,0.002,4246.8,4246.7,3.97490362]
[1754845896681,0.004,4247.5,4246.9,2.35465869]
[1754845896885,0.004,4247.5,4247.4,2.4719815]
[1754845897194,0.33851013,4248.2,4247.7,3.0]
[1754845897529,0.04,4248.9,4248.8,2.35360572]
[1754845897694,0.04,4248.9,4248.8,3.31763587]
[1754845897896,0.04,4248.9,4248.8,3.43523587]
[1754845898228,0.04,4250.9,4248.8,3.43523587]
[1754845898229,0.002,4250.2,4249.2,2.486]
[1754845898400,0.002,4250.2,4249.3,1.42029014]
[1754845898597,0.002,4250.2,4248.9,0.4933]
[1754845899218,0.002,4250.2,4250.1,0.1176]
[1754845899720,0.002,4250.2,4250.1,0.6109]
[1754845899917,0.002,4250.2,4250.1,0.1176]
[1754845900122,3.685,4250.2,4250.1,0.1176]
[1754845900417,0.04,4250.9,4246.5,2.35485616]
[1754845900418,0.04,4250.9,4249.2,0.4338]
[1754845900723,3.55,4250.7,4249.0,0.9271]
[1754845900891,2.35288915,4250.1,4249.1,0.4338]
[1754845901100,3.779,4250.2,4249.1,0.4338]
[1754845901299,2.35308519,4249.8,4249.1,0.4338]
[1754845901500,5.35288581,4250.1,4248.2,0.4338]
[1754845901733,0.55,4249.6,4247.7,0.4338]
[1754845901900,3.0,4249.4,4247.7,0.4338]
[1754845902101,3.0,4249.4,4247.8,2.3541598]
[1754845902435,2.3537195,4248.6,4247.7,0.4338]
[1754845902738,3.779,4248.9,4247.6,0.5333]
[1754845903036,0.55,4248.6,4247.6,0.04]
[1754845903333,3.0,4248.4,4247.6,0.04]
[1754845903500,2.35388568,4248.3,4247.6,0.04]
[1754845903834,3.0,4248.4,4247.6,0.04]
[1754845904019,2.35395033,4248.2,4247.6,0.04]
[1754845904234,0.4437,4248.3,4247.6,0.04]
[1754845904426,2.35400064,4248.1,4247.6,0.04]
[1754845904629,2.35405941,4248.0,4247.6,0.04]
[1754845904810,1.4563568,4248.3,4247.6,0.04]
[1754845904811,2.35410957,4247.9,4247.6,0.04]
[1754845905299,2.79775067,4248.0,4247.6,0.04]
[1754845905500,3.775,4247.9,4247.6,0.04]
[1754845905703,4.2187,4247.9,4247.6,0.04]
[1754845905935,0.86557,4247.8,4247.6,0.04]
[1754845906108,1.33257,4247.8,4247.6,0.04]
[1754845906305,0.4437,4247.7,4247.6,0.04]
[1754845906536,2.79791522,4247.7,4247.6,0.04]
[1754845906703,6.81491522,4247.7,4247.6,0.04]
[1754845906906,8.15150648,4247.7,4247.6,0.04]
[1754845908414,7.60150648,4247.7,4247.6,0.04]
[1754845908621,6.773,4247.7,4247.6,0.04]
[1754845909038,2.3540805,4248.0,4247.6,0.04]
[1754845909249,2.35421522,4247.7,4247.6,0.04]
[1754845909412,2.35410438,4247.9,4247.6,0.04]
[1754845909606,2.35421522,4247.7,4247.6,0.04]
[1754845909847,6.12521522,4247.7,4247.6,0.04]
[1754845910756,6.12521522,4247.7,4247.6,0.1576]
[1754845911248,6.12321522,4247.7,4247.6,0.1576]
[1754845911545,0.6676,4248.6,4247.6,0.1576]
[1754845911546,3.769,4247.8,4247.6,0.1576]
[1754845911920,6.12316583,4247.8,4247.6,0.1576]
[1754845912120,3.769,4247.8,4247.6,0.1576]
[1754845912533,2.35410654,4247.9,4247.6,0.1576]
[1754845912725,3.768,4247.8,4247.6,0.1576]
[1754845913150,6.12216747,4247.8,4247.6,0.1576]
[1754845913949,3.768,4247.8,4247.6,0.1576]
[1754845914351,6.12217291,4247.8,4247.6,0.1576]
[1754845914719,3.768,4247.8,4247.6,0.1576]
[1754845915566,6.12216057,4247.8,4247.6,0.1576]
[1754845915722,3.768,4247.8,4247.6,0.1576]
[1754845915923,0.4562,4248.1,4247.6,0.1576]
[1754845916220,6.11510164,4248.0,4247.6,0.1576]
[1754845916748,6.11510164,4248.0,4247.6,0.04]
[1754845916949,2.3541226,4247.9,4247.6,0.04]
[1754845917140,2.35416107,4247.8,4247.6,0.04]
[1754845917331,3.761,4247.7,4247.6,0.04]
[1754845917734,2.35411072,4247.9,4247.6,0.04]
[1754845917735,2.35411072,4247.9,4247.6,0.1576]
[1754845918124,3.757,4247.8,4247.6,0.1576]
[1754845919769,3.28871522,4247.7,4247.6,0.1576]
[1754845919922,0.55,4247.5,4246.7,0.001]
[1754845920126,2.35467349,4246.9,4246.7,0.001]
[1754845920421,0.55,4247.0,4246.7,0.001]
[1754845920620,0.9345,4247.4,4246.8,2.4723087]
[1754845920838,3.756,4247.3,4246.8,2.3547087]
[1754845921065,3.756,4247.3,4246.7,0.001]
[1754845921273,3.756,4247.3,4247.2,0.1176]
[1754845921574,4.2122,4247.3,4247.2,0.1176]
[1754845921860,2.90449237,4247.2,4247.1,0.001]
[1754845922061,36.95659237,4247.2,4247.1,0.001]
[1754845922274,2.90471413,4246.8,4246.7,0.001]
[1754845922569,5.90471413,4246.8,4246.7,0.001]
[1754845922767,11.58209928,4246.8,4246.7,0.001]
[1754845922972,12.51659928,4246.8,4246.7,0.001]
[1754845923170,42.51659928,4246.8,4246.7,0.001]
[1754845923326,42.63419928,4246.8,4246.7,0.001]
[1754845924366,42.63419928,4246.8,4246.6,0.04]
[1754845924367,5.90476958,4246.7,4246.6,1e-08]
[1754845924572,37.43086359,4246.7,4246.6,1e-08]
[1754845924726,38.15458565,4246.7,4246.6,1e-08]
[1754845924928,0.55,4246.5,4246.3,1e-08]
[1754845925251,46.02253594,4246.4,4246.3,1e-08]
[1754845925424,40.71403594,4246.4,4246.3,1e-08]
[1754845925625,41.13535594,4246.4,4246.3,1e-08]
[1754845926567,7.26075594,4246.4,4246.3,1e-08]
[1754845926766,11.13535594,4246.4,4246.3,1e-08]
[1754845928173,7.37835594,4246.4,4246.3,1e-08]
[1754845928359,11.13335594,4246.4,4246.3,1e-08]
[1754845928555,11.13135594,4246.4,4246.3,1e-08]
[1754845931057,41.13135594,4246.4,4246.3,1e-08]
[1754845933389,3.6676,4246.4,4246.3,1e-08]
[1754845933562,6.745,4246.4,4246.3,1e-08]
[1754845934169,3.745,4246.4,4246.3,1e-08]
[1754845934457,3.744,4246.4,4246.3,1e-08]
[1754845934800,3.743,4246.4,4246.3,1e-08]
[1754845935097,3.745,4246.4,4246.3,0.11760001]
[1754845935976,6.55613594,4246.4,4246.3,0.11760001]
[1754845936351,3.745,4246.4,4246.3,0.11760001]
[1754845936985,6.09993594,4246.4,4246.3,0.11760001]
[1754845938892,2.35493594,4246.4,4246.3,0.11760001]
[1754845939062,5.654,4247.7,4246.3,0.91020001]
[1754845939266,2.35434151,4247.5,4247.1,0.1176]
[1754845939465,2.35433215,4247.5,4247.1,0.1176]
[1754845939685,3.739,4247.6,4247.1,0.1176]
[1754845939985,5.654,4247.7,4247.4,0.1176]
[1754845940164,3.74,4247.6,4247.4,0.1176]
[1754845940368,3.0,4247.5,4247.4,0.1176]
[1754845940574,3.0,4247.5,4247.4,0.5838]
[1754845940760,5.654,4247.7,4247.4,0.5838]
[1754845940956,3.738,4247.6,4247.4,1.0278]
[1754845941313,3.738,4247.6,4246.5,0.4662]
[1754845941587,5.654,4247.7,4247.5,0.1176]
[1754845941763,0.5639,4248.7,4247.5,0.1176]
[1754845941764,0.5639,4248.7,4247.5,0.5616]
[1754845941969,6.09478495,4248.5,4247.5,2.91590411]
[1754845942168,6.09478495,4248.5,4248.3,0.1176]
[1754845942419,0.002,4248.6,4247.7,2.35421522]
[1754845942592,3.74,4248.5,4248.4,0.1176]
[1754845943265,0.002,4248.6,4248.4,0.1176]
[1754845943466,6.74,4248.5,4248.4,0.1176]
[1754845943788,3.739,4248.5,4248.4,1.0278]
[1754845943992,0.002,4248.6,4248.5,2.35377191]
[1754845944288,0.002,4248.6,4248.5,3.26397191]
[1754845944489,0.002,4248.6,4248.4,0.1176]
[1754845944695,3.739,4248.5,4248.4,0.1176]
[1754845945358,3.739,4248.5,4248.4,0.5838]
[1754845945558,3.739,4248.5,4248.4,0.1176]
[1754845945855,0.002,4248.6,4248.4,0.5838]
[1754845946056,3.739,4248.5,4248.4,0.5616]
[1754845946276,3.739,4248.5,4248.4,0.1176]
[1754845946782,0.002,4248.6,4248.4,0.5838]
[1754845947283,3.738,4248.5,4248.4,0.5838]
[1754845947611,3.738,4248.5,4248.4,0.1176]
[1754845948771,6.09177191,4248.5,4248.4,0.1176]
[1754845949118,7.85581559,4248.5,4248.4,0.1176]
[1754845949592,7.38281559,4248.5,4248.4,0.1176]
[1754845949796,8.50204368,4248.5,4246.7,2.35476958]
[1754845949986,8.50204368,4248.5,4246.5,0.707041]
[1754845949987,3.55,4248.2,4248.0,0.1176]
[1754845950194,0.55,4248.0,4246.6,2.35481268]
[1754845950393,7.08168182,4248.1,4246.7,2.35475329]
[1754845950394,2.35434859,4247.5,4246.7,2.35475329]
[1754845950604,3.736,4247.4,4246.6,2.35482125]
[1754845950775,2.35428505,4247.6,4246.4,2.3548937]
[1754845950776,2.35449521,4247.2,4246.4,2.3548937]
[1754845950990,3.736,4247.3,4246.5,2.35488048]
[1754845951311,3.736,4247.3,4247.1,0.1176]
[1754845951810,3.735,4247.2,4247.1,2.93830679]
[1754845953016,3.735,4247.2,4247.1,2.9383478]
[1754845953519,3.735,4247.2,4247.1,2.4721478]
[1754845953881,3.735,4247.2,4247.1,0.1176]
[1754845955722,3.735,4247.2,4247.1,2.4721478]
[1754845956082,3.735,4247.2,4247.1,0.1176]
[1754845956478,4.1813,4247.2,4247.1,0.1176]
[1754845956788,3.735,4247.2,4247.1,0.1176]
[1754845957819,0.55,4247.9,4247.1,0.1176]
[1754845958116,2.35432893,4247.5,4247.1,0.1176]
[1754845958285,2.35432893,4247.5,4246.7,2.35472024]
[1754845958286,3.727,4247.4,4246.7,2.35472024]
[1754845959383,3.727,4247.4,4247.3,0.1176]
[1754845961542,0.4483,4248.6,4247.3,2.4719847]
[1754845961833,0.4483,4248.6,4248.0,0.1176]
[1754845962014,3.723,4248.3,4248.0,0.1176]
[1754845962330,3.723,4248.3,4248.0,2.47164896]
[1754845962640,3.723,4248.3,4248.0,0.1176]
[1754845962785,3.723,4248.3,4248.0,2.47164896]
[1754845963700,3.723,4248.3,4248.0,0.1176]
[1754845963937,0.9213,4248.1,4248.0,0.1176]
[1754845964238,3.27529355,4248.1,4248.0,0.1176]
[1754845964428,0.9213,4248.1,4248.0,0.1176]
[1754845964722,0.4483,4248.1,4248.0,0.1176]
[1754845965092,0.002,4248.1,4248.0,0.1176]
[1754845965903,3.72,4248.1,4248.0,0.1176]
[1754845966299,0.002,4248.1,4248.0,2.71882917]
[1754845966500,0.002,4248.1,4248.0,3.18502917]
[1754845966707,0.002,4248.1,4248.0,3.62902917]
[1754845966909,0.002,4248.1,4248.0,0.36478021]
[1754845967220,3.721,4248.1,4248.0,0.1176]
[1754845970434,4.178,4248.1,4248.0,0.1176]
[1754845970815,3.721,4248.1,4248.0,0.1176]
[1754845971801,0.002,4248.1,4248.0,2.82494896]
[1754845972007,0.002,4248.1,4248.0,2.94254896]
[1754845972211,0.002,4248.1,4248.0,3.94609627]
[1754845974839,0.002,4248.1,4248.0,3.51529627]
[1754845975033,0.002,4248.1,4248.0,3.04439627]
[1754845976747,0.002,4248.1,4248.0,3.94609627]
[1754845977039,0.002,4248.1,4248.0,3.96963675]
[1754845977246,0.002,4248.1,4248.0,3.94609627]
[1754845978607,0.002,4248.1,4248.0,3.82849627]
[1754845978811,0.002,4248.1,4248.0,7.54609627]
[1754845979539,0.002,4248.6,4248.5,2.35377191]
[1754845979722,0.002,4248.6,4248.5,2.5891491]
[1754845979924,0.002,4248.6,4248.5,3.6084491]
[1754845980330,0.002,4248.6,4248.5,3.1776491]
[1754845980936,0.002,4248.6,4248.5,2.7067491]
[1754845981255,0.002,4248.6,4248.5,0.35297719]
[1754845981553,0.002,4248.6,4248.5,2.47137191]
[1754845982019,0.459,4248.6,4248.5,0.1176]
[1754845982343,0.459,4248.6,4248.5,2.47137191]
[1754845982344,0.002,4248.6,4248.5,2.47137191]
[1754845983143,0.002,4248.6,4248.5,0.1176]
[1754845983144,0.459,4248.6,4248.5,0.1176]
[1754845983567,0.9253,4248.6,4248.5,0.1176]
[1754845984259,3.27901651,4248.6,4248.5,0.1176]
[1754845985123,10.54728274,4248.6,4248.5,0.1176]
[1754845985348,10.54728274,4248.6,4247.1,2.35454661]
[1754845985349,0.55,4248.4,4246.8,3.701]
[1754845985578,0.55,4248.2,4248.1,0.1176]
[1754845985733,2.35431038,4247.6,4246.8,2.35471199]
[1754845986130,2.3545635,4247.1,4246.3,3.06202766]
[1754845986357,0.4663,4247.1,4247.0,0.1176]
[1754845986726,6.5218478,4247.1,4247.0,0.1176]
[1754845986923,6.9788478,4247.1,4247.0,0.1176]
[1754845987928,10.5288478,4247.1,4247.0,0.1176]
[1754845988251,10.5288478,4247.1,4246.3,1e-08]
[1754845988252,2.35493594,4246.4,4246.3,1e-08]
[1754845988460,6.05493594,4246.4,4246.3,0.11760001]
[1754845988835,6.97823594,4246.4,4246.3,0.11760001]
[1754845990826,7.52823594,4246.4,4246.3,1e-08]
[1754845999073,0.1176,4247.0,4246.3,0.11760001]
[1754845999280,1.74543023,4247.1,4246.8,0.1176]
[1754845999281,6.04465869,4246.9,4246.8,0.1176]
[1754845999884,3.55,4246.8,4246.3,1e-08]
[1754846000086,2.90487681,4246.6,4246.3,0.11760001]
[1754846000268,6.69,4246.5,4246.3,0.11760001]
[1754846000452,3.69,4246.5,4246.3,0.11760001]
[1754846000975,3.691,4246.4,4246.3,0.11760001]
[1754846002183,3.691,4246.4,4246.3,0.59900001]
[1754846002377,3.691,4246.4,4246.3,1.04300001]
[1754846002690,3.691,4246.4,4246.3,3.39799141]
[1754846002843,3.69,4246.6,4246.5,2.35485872]
[1754846003247,3.69,4246.6,4246.5,3.39785872]
[1754846003691,0.4571,4247.5,4246.5,0.9254]
[1754846003987,0.4571,4247.5,4246.7,2.35476412]
[1754846003988,3.0,4247.3,4246.7,2.35476412]
[1754846004191,3.0,4247.3,4247.2,0.1176]
[1754846004549,7.52053693,4247.3,4247.2,0.1176]
[1754846004761,5.1661,4247.3,4246.3,1e-08]
[1754846004959,1.4972,4247.2,4246.3,1e-08]
[1754846005161,3.55,4247.0,4246.7,0.1176]
[1754846005678,5.90471413,4246.8,4246.7,0.1176]
[1754846005886,11.23836799,4246.8,4246.7,0.1176]
[1754846006062,12.18556799,4246.8,4246.7,0.1176]
[1754846006981,2.35493594,4246.4,4246.3,0.11760001]
[1754846007149,6.04293594,4246.4,4246.3,0.11760001]
[1754846007357,3.688,4246.4,4246.3,0.11760001]
[1754846007857,6.04293594,4246.4,4246.3,0.11760001]
[1754846008062,3.688,4246.4,4246.3,0.11760001]
[1754846008652,6.04293594,4246.4,4246.3,0.11760001]
[1754846008851,3.688,4246.4,4246.3,0.11760001]
[1754846009769,6.04293594,4246.4,4246.3,0.11760001]
[1754846010010,6.99013594,4246.4,4246.3,0.11760001]
[1754846010182,7.69827404,4246.4,4246.3,0.11760001]
[1754846010965,8.24827404,4246.4,4246.3,1e-08]
[1754846013957,4.56027404,4246.4,4246.3,1e-08]
[1754846014159,8.24327404,4246.4,4246.3,1e-08]
[1754846018158,7.29607404,4246.4,4246.3,1e-08]
[1754846019160,3.683,4246.4,4246.3,1e-08]
[1754846019689,6.03793594,4246.4,4246.3,1e-08]
[1754846021307,3.676,4246.4,4246.3,1e-08]
[1754846021510,3.676,4246.4,4246.3,0.11760001]
[1754846021813,3.676,4246.4,4246.3,2.95397511]
[1754846021814,3.673,4246.4,4246.3,2.95397511]
[1754846021989,3.673,4246.4,4246.3,3.92888276]
[1754846022313,3.674,4246.5,4246.4,2.35488084]
[1754846022517,3.674,4246.5,4246.4,3.28028084]
[1754846023311,0.5747,4247.6,4246.4,0.9254]
[1754846023520,12.826,4247.7,4247.0,2.35458662]
[1754846023521,3.673,4247.5,4247.0,2.35458662]
[1754846023679,3.673,4247.5,4246.4,0.22812627]
[1754846024014,6.673,4247.5,4247.4,0.1176]
[1754846024393,8.1702,4247.5,4247.4,0.1176]
[1754846024594,2.354506,4247.2,4247.1,0.1176]
[1754846024916,6.026506,4247.2,4247.1,0.1176]
[1754846025211,6.973706,4247.2,4247.1,0.1176]
[1754846025380,3.672,4247.2,4247.1,0.1176]
[1754846029816,6.45689237,4247.2,4247.1,0.1176]
[1754846029993,7.38434984,4247.2,4247.1,0.1176]
[1754846030195,7.84764984,4247.2,4247.1,0.1176]
[1754846031690,8.39764984,4247.2,4247.1,0.1176]
[1754846034325,7.50394984,4247.2,4247.1,0.1176]
[1754846034513,4.212,4247.2,4247.1,0.1176]
[1754846034713,6.56649237,4247.2,4247.1,0.1176]
[1754846035594,3.662,4247.2,4247.1,0.1176]
[1754846037229,3.662,4247.2,4247.1,0.598]
[1754846037616,3.662,4247.2,4247.1,0.1176]
[1754846038933,6.91019237,4247.2,4247.1,0.1176]
[1754846039108,7.83665109,4247.2,4247.1,0.1176]
[1754846039433,5.01885872,4247.2,4247.1,0.1176]
[1754846039638,6.44689237,4247.2,4247.1,0.1176]
[1754846039806,7.46019237,4247.2,4247.1,0.1176]
[1754846041602,10.46019237,4247.2,4247.1,0.1176]
[1754846042302,0.55,4246.7,4246.3,1e-08]
[1754846042519,3.55,4246.2,4245.8,0.001]
[1754846042729,6.02281326,4245.9,4245.8,0.001]
[1754846042931,6.02281326,4245.9,4245.0,0.001]
[1754846042932,2.90543516,4245.5,4245.0,0.001]
[1754846043236,5.35565711,4245.1,4245.0,0.001]
[1754846043436,10.23400653,4245.1,4245.0,0.001]
[1754846043618,11.24530653,4245.1,4245.0,0.001]
[1754846044537,10.23400653,4245.1,4245.0,0.001]
[1754846044833,10.00205711,4245.1,4245.0,0.001]
[1754846045051,10.46535711,4245.1,4245.0,0.001]
[1754846045209,6.91695711,4245.1,4245.0,0.001]
[1754846045414,10.11965711,4245.1,4245.0,0.001]
[1754846045734,9.02265711,4245.1,4245.0,0.001]
[1754846046433,9.45305711,4245.1,4245.0,0.001]
[1754846047432,9.45205711,4245.1,4245.0,0.001]
[1754846047818,11.1828206,4245.1,4245.0,0.001]
[1754846048024,11.6461206,4245.1,4245.0,0.001]
[1754846049252,11.7637206,4245.1,4245.0,0.001]
[1754846050426,11.93760257,4245.1,4245.0,0.001]
[1754846051568,11.93760257,4245.1,4245.0,1e-08]
[1754846051723,41.93760257,4245.1,4245.0,1e-08]
[1754846056639,2.35602885,4244.5,4243.7,0.001]
[1754846056937,2.35602885,4244.5,4243.2,0.001]
[1754846056938,0.55,4243.2,4242.9,1e-08]
[1754846057154,6.024423,4243.0,4242.9,1e-08]
[1754846057459,5.9070452,4242.6,4242.5,1e-08]
[1754846057628,39.6946452,4242.6,4242.5,1e-08]
[1754846057826,40.9154176,4242.6,4242.5,1e-08]
[1754846058229,38.5583724,4242.6,4241.3,0.001]
[1754846058427,5.90765648,4241.5,4241.3,0.001]
[1754846058628,9.57865648,4241.5,4241.3,0.001]
[1754846058828,0.55,4241.0,4240.6,0.04]
[1754846059053,6.57893444,4241.0,4240.8,0.1186]
[1754846059251,6.57893444,4241.0,4240.8,0.001]
[1754846059535,9.69653444,4241.0,4240.8,0.001]
[1754846060564,10.13333444,4241.0,4240.8,0.001]
[1754846060869,10.13333444,4241.0,4240.8,1e-08]
[1754846060870,5.90799004,4240.9,4240.8,1e-08]
[1754846061077,4.45013344,4240.9,4240.6,1e-08]
[1754846061370,4.45013344,4240.9,4240.5,1e-08]
[1754846061371,5.90815686,4240.6,4240.5,1e-08]
[1754846061548,9.58015686,4240.6,4240.5,1e-08]
[1754846061968,9.58015686,4240.6,4240.5,0.48620001]
[1754846062372,6.58015686,4240.6,4240.5,1e-08]
[1754846062660,2.90815686,4240.6,4240.5,1e-08]
[1754846062863,6.58115686,4240.6,4240.5,1e-08]
[1754846064169,2.35788777,4241.1,4240.5,1e-08]
[1754846064170,3.0,4241.3,4240.5,0.92340001]
[1754846064375,2.35815686,4240.6,4240.5,0.60380001]
[1754846064534,6.58015686,4240.6,4240.5,1e-08]
[1754846064965,7.01695686,4240.6,4240.5,1e-08]
[1754846065760,6.58015686,4240.6,4240.5,1e-08]
[1754846066329,6.03115686,4240.6,4240.5,0.60380001]
[1754846066531,6.58115686,4240.6,4240.5,1e-08]
[1754846067358,0.1176,4241.1,4240.5,1e-08]
[1754846067542,3.674,4241.0,4240.5,1.04100001]
[1754846067758,3.674,4240.9,4240.5,1.04100001]
[1754846068086,3.674,4240.9,4240.6,0.9234]
[1754846068239,3.674,4240.9,4240.5,0.11760001]
[1754846068440,3.674,4240.8,4240.6,0.9234]
[1754846068639,3.674,4240.7,4240.6,2.69818747]
[1754846068942,0.1176,4242.2,4240.7,0.1176]
[1754846069254,2.35754561,4241.7,4241.5,0.1176]
[1754846069452,6.0326009,4241.6,4241.5,0.1176]
[1754846069970,6.0326009,4241.6,4241.2,0.1176]
[1754846069971,2.90765648,4241.5,4241.2,0.1176]
[1754846070277,2.35776766,4241.3,4241.2,0.1176]
[1754846071873,6.03271487,4241.4,4241.2,0.1176]
[1754846072076,2.35776766,4241.3,4241.2,0.1176]
[1754846073965,6.03272,4241.4,4241.2,0.1176]
[1754846074174,2.35776766,4241.3,4241.2,0.1176]
[1754846074482,3.0,4241.8,4241.3,0.9234]
[1754846074483,2.3575026,4241.8,4241.3,0.9234]
[1754846074675,6.02854532,4241.7,4241.2,0.1176]
[1754846074990,2.35766955,4241.5,4241.4,0.4862]
[1754846075161,2.35776766,4241.3,4241.2,0.4372]
[1754846075370,6.02776766,4241.3,4241.2,0.9234]
[1754846075577,6.02776766,4241.3,4241.2,1.041]
[1754846075886,3.67,4241.3,4241.2,1.041]
[1754846077656,3.67,4241.3,4241.2,0.6038]
[1754846078058,3.67,4241.3,4241.2,1.041]
[1754846078689,2.35789571,4241.1,4240.5,1e-08]
[1754846078861,6.02493444,4241.0,4240.9,0.1176]
[1754846079375,6.46173444,4241.0,4240.9,0.1176]
[1754846080189,7.01173444,4241.0,4240.9,0.1176]
[1754846080483,7.50523444,4241.0,4240.9,0.1176]
[1754846080956,2.35815686,4240.6,4240.5,1e-08]
[1754846081161,6.02615686,4240.6,4240.5,1e-08]
[1754846081354,6.02615686,4240.6,4240.5,0.11760001]
[1754846082895,7.50645686,4240.6,4240.5,1e-08]
[1754846083263,7.01295686,4240.6,4240.5,1e-08]
[1754846083663,7.50645686,4240.6,4240.5,1e-08]
[1754846083858,6.57615686,4240.6,4240.5,1e-08]
[1754846084090,0.55,4240.8,4240.5,1e-08]
[1754846084278,0.1176,4241.2,4240.5,1e-08]
[1754846084279,2.35815686,4240.6,4240.5,1e-08]
[1754846084483,7.61327255,4240.6,4240.5,1e-08]
[1754846084801,3.666,4240.6,4240.5,0.11760001]
[1754846085174,3.666,4240.6,4240.5,0.60380001]
[1754846085765,3.666,4240.6,4240.5,0.11760001]
[1754846085997,3.666,4240.6,4240.5,0.60380001]
[1754846086189,3.666,4240.6,4240.5,1.04100001]
[1754846086770,3.666,4240.6,4240.5,0.60380001]
[1754846087197,6.02415686,4240.6,4240.5,0.11760001]
[1754846088572,6.48835686,4240.6,4240.5,0.11760001]
[1754846088763,6.02415686,4240.6,4240.5,0.11760001]
[1754846089781,3.666,4240.6,4240.5,0.11760001]
[1754846090671,3.666,4240.6,4240.5,0.59750001]
[1754846091101,3.666,4240.6,4240.5,0.11760001]
[1754846092096,6.48835686,4240.6,4240.5,0.11760001]
[1754846092581,7.03835686,4240.6,4240.5,0.11760001]
[1754846092787,11.46166973,4240.6,4240.5,0.11760001]
[1754846093110,11.97024586,4240.6,4240.5,1e-08]
[1754846093323,12.08784586,4240.6,4240.5,1e-08]
[1754846098393,11.57926973,4240.6,4240.5,1e-08]
[1754846098592,12.08738391,4240.6,4240.5,1e-08]
[1754846099403,11.57926973,4240.6,4240.5,1e-08]
[1754846099916,9.02415686,4240.6,4240.5,1e-08]
[1754846100625,6.02415686,4240.6,4240.5,0.11760001]
[1754846100806,3.666,4240.6,4240.5,0.11760001]
[1754846101426,3.666,4240.6,4240.5,0.59750001]
[1754846102105,3.666,4240.6,4240.5,1.04150001]
[1754846102509,0.1176,4241.5,4240.5,1.38157646]
[1754846102703,0.1176,4241.7,4241.0,0.1176]
[1754846102906,0.002,4241.8,4241.3,0.1176]
[1754846103133,0.002,4241.5,4241.4,3.28161207]
[1754846103425,0.002,4241.5,4241.4,3.39921207]
[1754846103630,0.002,4241.5,4241.4,0.1176]
[1754846103814,3.669,4241.5,4241.4,0.1176]
[1754846104015,3.669,4241.5,4240.5,1e-08]
[1754846104016,2.35780706,4241.3,4240.5,1e-08]
[1754846104214,5.54,4241.5,4240.5,1e-08]
[1754846104215,3.668,4241.2,4241.1,0.1176]
[1754846104803,6.02582325,4241.2,4241.1,0.1176]
[1754846105137,10.52972325,4241.2,4241.1,0.1176]
[1754846105330,10.52972325,4241.2,4240.5,1e-08]
[1754846105331,2.35808889,4240.8,4240.5,1e-08]
[1754846105503,2.35808889,4240.8,4240.7,0.1176]
[1754846105705,6.49028889,4240.8,4240.7,0.1176]
[1754846107041,2.90815686,4240.6,4240.5,1e-08]
[1754846107204,6.57415686,4240.6,4240.5,1e-08]
[1754846107698,7.52805686,4240.6,4240.5,1e-08]
[1754846108007,10.52805686,4240.6,4240.5,1e-08]
[1754846111514,40.52805686,4240.6,4240.5,1e-08]
[1754846111733,42.56509269,4240.6,4240.5,1e-08]
[1754846112742,42.68059385,4240.6,4240.5,1e-08]
[1754846116619,42.68059385,4240.6,4240.0,1e-08]
[1754846116620,0.55,4240.1,4240.0,1e-08]
[1754846116844,37.208,4240.1,4240.0,1e-08]
[1754846117168,41.3955178,4240.1,4240.0,1e-08]
[1754846117445,41.3955178,4240.1,4238.6,0.04]
[1754846117446,2.90888,4239.3,4238.6,0.04]
[1754846117647,9.57488,4239.3,4238.6,0.04]
[1754846117952,10.48738,4239.3,4238.6,0.04]
[1754846118251,10.48738,4239.3,4239.2,1e-08]
[1754846118453,41.67220236,4239.3,4239.2,1e-08]
[1754846119816,41.67120236,4239.3,4239.2,1e-08]
[1754846120255,38.00620236,4239.3,4239.2,1e-08]
[1754846120432,9.57388,4239.3,4239.2,1e-08]
[1754846120853,6.665,4239.3,4239.2,1e-08]
[1754846121621,9.57388,4239.3,4239.2,1e-08]
[1754846122053,7.215,4239.3,4239.2,1e-08]
[1754846122236,7.39442894,4239.3,4239.2,1e-08]
[1754846122621,9.75330894,4239.3,4239.2,1e-08]
[1754846124058,11.87701741,4239.3,4239.2,1e-08]
[1754846125654,41.87701741,4239.3,4239.2,1e-08]
[1754846126659,41.99461741,4239.3,4239.2,1e-08]
[1754846130661,42.11505206,4239.3,4239.2,1e-08]
[1754846130867,41.64105206,4239.3,4239.2,1e-08]
[1754846131965,42.11505206,4239.3,4239.2,1e-08]
[1754846138277,41.64105206,4239.3,4239.2,1e-08]
[1754846138485,9.32374359,4239.3,4239.2,1e-08]
[1754846138787,3.84442894,4239.3,4239.2,0.94100001]
[1754846138959,6.20330894,4239.3,4239.2,0.94100001]
[1754846139274,6.84442894,4239.3,4239.2,0.94100001]
[1754846139442,3.84442894,4239.3,4239.2,0.94100001]